Cogmind - Beta 17 --- EXPLORER MODE // 2026.08.17 @ 23:42:56 // AFD2018/Launchers Player: Goose Result: Core destroyed Performance ------------- Evolutions (4) 2000 Regions Visited (8) 1600 Robots Destroyed (27) 135 Value Destroyed (810) 810 Prototype IDs (2) 40 Alien Tech Used (0) 0 Bonus (0) 0 TOTAL SCORE: 4585 Bonus ------- None Cogmind --------- Core Integrity 0/850 Matter 224/300 Energy 100/100 System Corruption 8% Temperature Cool (0) Movement Core (50) Location -6/Lower Caves Parts ------- > --- POWER (2) -------- (None) > --- PROPULSION (4) --- (None) > --- UTILITY (6) ------ (None) > --- WEAPON (4) ------- (None) > --- INVENTORY (5) ---- VTOL Module Improved Proton Missile Launcher Long-range Missile Launcher Long-range Missile Launcher Long-range Missile Launcher Peak State ------------ > --- POWER ------------ (None) > --- PROPULSION ------- (None) > --- UTILITY ---------- Compact Battery Compact Battery Compact Battery > --- WEAPON ----------- Long-range Missile Launcher Long-range Missile Launcher > --- INVENTORY -------- Compact Battery Improved Proton Missile Launcher Heavy Missile Launcher [Rating: 20] Favorites ----------- Power Light Nuclear Core Engine Ion Engine Power Core Light Nuclear Core Propulsion VTOL Module Leg Aluminum Leg Flight Unit VTOL Module Utility Compact Battery Device Heat Sink Storage Compact Battery Protection Light Armor Plating Weapon Rocket Launcher Launcher Rocket Launcher Build | -11 -10 -10 -9 -8 -7 -6 -6 -6 ------- Run | Yrd Mat Min Mat Mat Fac Fac Low Low Slots Evolved 9 | . 1 . 2 2 2 2 . . Power 1 | . . . . 1 . . . . Propulsion 2 | . . . . . . 2 . . Utility 4 | . 1 . 2 1 . . . . Weapon 2 | . . . . . 2 . . . Parts Attached 34 | . . 1 11 3 2 6 10 1 Power 3 | . . . 2 . . 1 . . Engine 2 | . . . 2 . . . . . Core 1 | . . . . . . 1 . . Reactor . | . . . . . . . . . Propulsion 6 | . . . 2 . . 2 1 1 Treads . | . . . . . . . . . Leg 2 | . . . 2 . . . . . Wheel . | . . . . . . . . . Hover . | . . . . . . . . . Flight 4 | . . . . . . 2 1 1 Utility 7 | . . . 3 . . . 4 . Device 2 | . . . 2 . . . . . Storage 4 | . . . . . . . 4 . Processor . | . . . . . . . . . Hackware . | . . . . . . . . . Protection 1 | . . . 1 . . . . . Artifact . | . . . . . . . . . Weapon 18 | . . 1 4 3 2 3 5 . Energy Gun . | . . . . . . . . . Energy Cannon . | . . . . . . . . . Ballistic Gun . | . . . . . . . . . Ballistic Cannon . | . . . . . . . . . Launcher 18 | . . 1 4 3 2 3 5 . Special Weapon . | . . . . . . . . . Impact Weapon . | . . . . . . . . . Slashing Weapon . | . . . . . . . . . Piercing Weapon . | . . . . . . . . . Special Melee Weapon . | . . . . . . . . . Unidentified Prototypes 2 | . . . . . . 2 . . Corrupted Parts 1 | . . . 1 . . . . . System Corruption 3 | . . . 3 . . . . . Parts Lost 17 | . . . 9 1 . 1 1 5 Power 1 | . . . 1 . . . . . Propulsion 3 | . . . 2 . . . 1 . Utility 7 | . . . 3 . . . . 4 Weapon 6 | . . . 3 1 . 1 . 1 Highest Loss Streak 3 | . . . 3 1 . 1 1 3 To Critical Strikes . | . . . . . . . . . Average Backups 2 | . . . 2 . 3 4 4 4 Power . | . . . . . . . . . Propulsion . | . . . . . . . . . Utility . | . . . . . . . . . Weapon 2 | . . . 2 . 3 4 3 4 Tool/Special . | . . . . . . . . . Unused Backups 13 | . . . 5 . . 3 2 3 Power . | . . . . . . . . . Propulsion 1 | . . . . . . . 1 . Utility . | . . . . . . . . . Weapon 12 | . . . 5 . . 3 1 3 Tool/Special . | . . . . . . . . . Average Slot Usage (%) 16 | . . 5 31 13 3 3 15 16 Engine 1 | . . . 3 . . . . . Core 1 | . . . . . . 1 3 . Flight 1 | . . . . . . 2 4 4 Device 1 | . . . 5 . . . . . Storage 2 | . . . . . . . 6 12 Protection 1 | . . . 4 . . . . . Launcher 6 | . . 5 14 13 3 . . . Peak Build Rating 20 | . . 1 9 6 7 15 20 16 Average Rating 5 | . . . 5 4 2 3 8 9 On Entrance 2 | . . . 1 2 . 1 8 10 Avg Prop Armor Cover (%) . | . . . . . . . . . Naked Turns 437 | . 55 62 . 15 86 173 . 46 Heaviest Build 13 | . . 3 13 12 13 8 11 10 Greatest Support 20 | 3 3 3 20 3 3 8 8 4 Greatest Overweight (x) 4 | . . . 4 3 4 2 3 2 Average Overweight (x) . | . . . 1 1 . . . . Largest Inventory Capacity 5 | 5 5 5 5 5 5 5 5 5 Average Capacity 5 | 5 5 5 5 5 5 5 5 5 Most Carried 5 | . . . 5 3 5 5 5 5 Average Carried 2 | . . . 2 . 3 4 4 4 Final Capacity 5 | 5 5 5 5 5 5 5 5 5 Final Carried 5 | . . . . 3 5 4 5 5 Class Distribution -------------------- 93% | Hacker-Mutant 3% | Hacker-Sprinter Dominant Class ---------------- Hacker-Mutant | -10/Materials Hacker-Mutant | -10/Mines Hacker-Mutant | -9/Materials Hacker-Mutant | -8/Materials Hacker-Mutant | -7/Factory Hacker-Mutant | -6/Factory Hacker-Mutant | -6/Lower Caves Hacker-Mutant | -6/Lower Caves Resources | -11 -10 -10 -9 -8 -7 -6 -6 -6 ----------- Run | Yrd Mat Min Mat Mat Fac Fac Low Low Matter Collected 524 | . . 24 179 22 . 30 239 30 Remotely . | . . . . . . . . . Salvage Created 560 | . . 39 267 26 . 30 168 30 Parts 33 | . . 3 20 2 . 3 3 2 Haulers Intercepted . | . . . . . . . . . Recyclers Shooed . | . . . . . . . . . Parts Field Recycled . | . . . . . . . . . Retrieved Matter . | . . . . . . . . . Parts Self-Destructed . | . . . . . . . . . Prevented . | . . . . . . . . . Parts Restored . | . . . . . . . . . Kills | -11 -10 -10 -9 -8 -7 -6 -6 -6 ------- Run | Yrd Mat Min Mat Mat Fac Fac Low Low Combat Hostiles Destroyed 23 | . . 3 11 1 . 1 6 1 Melee 2 | . . . . . . 1 . 1 AOE 21 | . . 3 11 1 . . 6 . Classes Destroyed 8 | . . 3 4 . . . 1 . Worker 1 | . . . 1 . . . . . Builder 2 | . . . 1 1 . . . . Mechanic 1 | . . . 1 . . . . . Swarmer 11 | . . 1 5 . . 1 3 1 Grunt 8 | . . 1 4 1 . . 2 . Brawler 1 | . . . . . . . 1 . Sentry 2 | . . . 2 . . . . . Demolisher 1 | . . 1 . . . . . . Best Kill Streak 4 | . . 2 4 2 . 1 3 1 Combat Bots Only 4 | . . 2 4 1 . 1 3 1 Max Kills in Single Turn 4 | . . 1 4 1 . 1 2 1 Gunslinging . | . . . . . . . . . Exploded 4 | . . 1 4 1 . . 2 . Melee 1 | . . . . . . 1 . 1 Uniques/NPCs Destroyed . | . . . . . . . . . Combat | -11 -10 -10 -9 -8 -7 -6 -6 -6 -------- Run | Yrd Mat Min Mat Mat Fac Fac Low Low Hostile Shots Fired 317 | . 3 5 98 31 23 63 20 74 Missed 97 | . 1 1 20 10 11 25 9 20 Hits 220 | . 2 4 78 21 12 38 11 54 Melee 6 | . . . . . 5 . 1 . Projectile 214 | . 2 4 78 21 7 38 10 54 AOE 1 | . . 1 . . . . . . Critical Strikes 4 | . . . . 1 1 . . 2 Damage Taken 2594 | . 14 64 828 271 190 400 160 667 Core 1401 | . 14 55 212 143 107 257 36 577 Absorbed by Shields . | . . . . . . . . . Ignored by Resistances 1320 | . 9 40 370 160 107 234 87 313 Core Remaining (%) 75 | 100 . 72 47 74 84 . . . Volleys Fired 27 | . . 5 12 1 . . 9 . Largest 2 | . . 1 2 2 . . 2 . Hottest 86 | . . 30 66 72 . . 86 . Shots Fired 35 | . . 5 16 2 . . 12 . Gun . | . . . . . . . . . Cannon . | . . . . . . . . . Launcher 35 | . . 5 16 2 . . 12 . Special . | . . . . . . . . . Kinetic . | . . . . . . . . . Thermal . | . . . . . . . . . Explosive 35 | . . 5 16 2 . . 12 . Electromagnetic . | . . . . . . . . . Robot Hit Streak 23 | . . 2 14 16 . . 23 . Robot Miss Streak 1 | . . 1 . . . . 1 . Penetration Max . | . . . . . . . . . Secondary Targets . | . . . . . . . . . Shots Hit Robots 26 | . . 3 12 2 . . 9 . Core Hits 52 | . . 6 23 5 . 2 8 8 Critical Kills . | . . . . . . . . . Critical Parts Destroyed . | . . . . . . . . . Critical Strikes . | . . . . . . . . . Melee Attacks . | . . . . . . . . . Impact . | . . . . . . . . . Slashing . | . . . . . . . . . Piercing . | . . . . . . . . . Sneak Attacks . | . . . . . . . . . Combat Hostiles . | . . . . . . . . . Follow-up Attacks . | . . . . . . . . . Damage Inflicted 2723 | . . 209 1034 278 15 55 980 152 Guns . | . . . . . . . . . Cannons . | . . . . . . . . . Explosions 2449 | . . 209 1014 274 . . 952 . Melee . | . . . . . . . . . Ramming 274 | . . . 20 4 15 55 28 152 Kinetic . | . . . . . . . . . Thermal . | . . . . . . . . . Explosive 2449 | . . 209 1014 274 . . 952 . Electromagnetic . | . . . . . . . . . Impact . | . . . . . . . . . Slashing . | . . . . . . . . . Piercing . | . . . . . . . . . Highest Corruption 8 | . 1 1 7 . . 1 4 8 Average Corruption 3 | . 1 1 4 . . 1 3 4 Corruption Purged . | . . . . . . . . . Corruption Blocked . | . . . . . . . . . Effects 21 | . 1 . 10 . . 1 6 3 Message Errors 5 | . . . 2 . . . 2 1 Matter Fused 4 | . . . 3 . . . 1 . Energy Discharges 4 | . . . 1 . . . 2 1 Data Loss (minor) 6 | . . . 4 . . 1 1 . Alerts 2 | . 1 . . . . . . 1 Overload Shots . | . . . . . . . . . Overflow Damage 75 | . . . 38 . . . 37 . Projectiles . | . . . . . . . . . Explosions 74 | . . . 38 . . . 36 . Melee 1 | . . . . . . . 1 . Knockbacks . | . . . . . . . . . Impact . | . . . . . . . . . Kinetic . | . . . . . . . . . Secondary . | . . . . . . . . . Self-Inflicted Damage 308 | . . 24 72 67 7 24 47 67 Shots 6 | . . 1 3 1 . . 1 . Rammed 104 | . . . 18 1 1 20 19 45 Targets Rammed 105 | . . . 19 1 1 20 19 45 Kicked 1 | . . . 1 . . . . . Crushed . | . . . . . . . . . Highest Temperature 8 | . . 5 8 . . . . . Average Temperature 4 | . . 5 4 . . . . . Received Heat Transfer 687 | . 12 . 342 171 36 . 54 72 Siege Activations . | . . . . . . . . . Martial Activations . | . . . . . . . . . Shielding Activations . | . . . . . . . . . Robots Disrupted . | . . . . . . . . . Combat Hostiles . | . . . . . . . . . Robots Corrupted 1 | . . . . . . . 1 . Combat Hostiles 1 | . . . . . . . 1 . Parts Fried . | . . . . . . . . . Impact Corruptions 1 | . . . . . . . 1 . Robots Melted . | . . . . . . . . . Combat Hostiles . | . . . . . . . . . Parts Melted . | . . . . . . . . . Heat Transferred . | . . . . . . . . . Parts Sabotaged . | . . . . . . . . . Parts Stolen 1 | . . . . . . . 1 . Parts Stripped . | . . . . . . . . . Power Chain Reactions . | . . . . . . . . . Alert | -11 -10 -10 -9 -8 -7 -6 -6 -6 ------- Run | Yrd Mat Min Mat Mat Fac Fac Low Low Maximum Alert Level . | . . . . . . . . . Low Security (%) 100 | 100 100 100 100 100 100 100 . . Level 1 . | . . . . . . . . . Level 2 . | . . . . . . . . . Level 3 . | . . . . . . . . . Level 4 . | . . . . . . . . . Level 5 . | . . . . . . . . . High Security . | . . . . . . . . . Max Security . | . . . . . . . . . Peak Influence 128 | . 15 105 128 36 45 65 . . Initial 24 | . . 4 24 20 . 21 . . Average 27 | . 3 27 44 10 4 20 . . Influence Increases 1169 | . 30 120 430 91 108 120 145 125 Destroy 0b10 Robot/C 460 | . . 60 220 20 . 20 120 20 Destroy 0b10 Robot/NC 25 | . . . 15 5 . . 5 . Destroy Leader 100 | . . 10 60 . . 10 20 . Successful Hack 48 | . . . . 30 18 . . . Disable Machine 28 | . . . 20 8 . . . . Destroy Structure 178 | . . 35 115 28 . . . . Lose Combat Pursuer 330 | . 30 15 . . 90 90 . 105 Influence Decreases 1164 | . 15 45 452 159 48 130 155 160 Entered New Map 205 | . . 11 66 48 . 39 26 15 Time Decay 819 | . 15 34 296 101 48 81 129 115 Lost Part 140 | . . . 90 10 . 10 . 30 Squads Dispatched 13 | . . . 2 2 2 6 . 1 Investigation 4 | . . . 1 1 . 2 . . Extermination . | . . . . . . . . . Reinforcement 8 | . . . 1 1 2 4 . . Assault 1 | . . . . . . . . 1 Garrison . | . . . . . . . . . Intercept . | . . . . . . . . . Searches Triggered . | . . . . . . . . . Construction Impeded 1 | . . . . 1 . . . . Haulers Reinforced . | . . . . . . . . . Active Scanning Responses . | . . . . . . . . . Cargo Convoy Interrupts . | . . . . . . . . . Stealth | -11 -10 -10 -9 -8 -7 -6 -6 -6 --------- Run | Yrd Mat Min Mat Mat Fac Fac Low Low Distress Signals 3 | . . . . 1 1 1 . . Communications Jammed . | . . . . . . . . . Distress Signals . | . . . . . . . . . Times Spotted 73 | . 5 4 14 7 10 16 7 10 Peak Tracking Total 9 | . 3 2 6 5 6 9 3 7 Tactical Retreats 9 | . 1 1 . . 2 3 . 2 Traps | -11 -10 -10 -9 -8 -7 -6 -6 -6 ------- Run | Yrd Mat Min Mat Mat Fac Fac Low Low Traps Triggered 4 | . 1 . 1 . . 2 . . Indirectly . | . . . . . . . . . Trap Hack Attempts . | . . . . . . . . . Triggered . | . . . . . . . . . Disarmed . | . . . . . . . . . Reprogrammed . | . . . . . . . . . Reused . | . . . . . . . . . Traps Extracted . | . . . . . . . . . Installed . | . . . . . . . . . Triggered . | . . . . . . . . . Machines | -11 -10 -10 -9 -8 -7 -6 -6 -6 ---------- Run | Yrd Mat Min Mat Mat Fac Fac Low Low Machines Disabled 7 | . . . 5 2 . . . . Max in Single Turn 3 | . . . 3 1 . . . . Machines Repaired . | . . . . . . . . . Machines Dismantled . | . . . . . . . . . Machines Sabotaged . | . . . . . . . . . Overloaded Fab Kills . | . . . . . . . . . Hacking | -11 -10 -10 -9 -8 -7 -6 -6 -6 --------- Run | Yrd Mat Min Mat Mat Fac Fac Low Low Machines Accessed 8 | . 1 . 2 3 1 1 . . Terminals 5 | . 1 . 1 2 . 1 . . Fabricators 1 | . . . . . 1 . . . Repair Stations . | . . . . . . . . . Recycling Units . | . . . . . . . . . Scanalyzers 2 | . . . 1 1 . . . . Garrison Access . | . . . . . . . . . Total Hacks 20 | . 2 . 5 9 2 2 . . Successful 11 | . 1 . 3 5 2 . . . Failed 9 | . 1 . 2 4 . 2 . . Catastrophic 2 | . . . . 1 . 1 . . Database Lockouts . | . . . . . . . . . Manual 11 | . 2 . 2 5 . 2 . . Terminals 12 | . 2 . 2 6 . 2 . . Fabricators 2 | . . . . . 2 . . . Repair Stations . | . . . . . . . . . Recycling Units . | . . . . . . . . . Scanalyzers 6 | . . . 3 3 . . . . Garrison Access . | . . . . . . . . . Terminal Hacks 3 | . 1 . . 2 . . . . Robot Analysis 1 | . . . . 1 . . . . Branch Access Points 2 | . 1 . . 1 . . . . Fabricator Hacks 2 | . . . . . 2 . . . Load Schematic 1 | . . . . . 1 . . . Build 1 | . . . . . 1 . . . Repair Station Hacks . | . . . . . . . . . Recycling Unit Hacks . | . . . . . . . . . Scanalyzer 6 | . . . 3 3 . . . . Insert Component 1 | . . . . 1 . . . . Analyze 1 | . . . . 1 . . . . Retrieve Study 4 | . . . 3 1 . . . . Garrison Access Hacks . | . . . . . . . . . Unauthorized Hacks . | . . . . . . . . . Terminals . | . . . . . . . . . Fabricators . | . . . . . . . . . Repair Stations . | . . . . . . . . . Recycling Units . | . . . . . . . . . Scanalyzers . | . . . . . . . . . Garrison Access . | . . . . . . . . . Data Cores Recovered . | . . . . . . . . . Used . | . . . . . . . . . Hacking Detections 6 | . . . 2 2 1 1 . . Full Trace Events 4 | . . . 1 2 . 1 . . Feedback Events . | . . . . . . . . . Feedback Blocked . | . . . . . . . . . Robot Schematics Acquired . | . . . . . . . . . Robots Built . | . . . . . . . . . Authchips . | . . . . . . . . . Time . | . . . . . . . . . Total Robot Build Rating . | . . . . . . . . . Part Schematics Acquired 1 | . . . . 1 . . . . Parts Built 1 | . . . . . 1 . . . Authchips . | . . . . . . . . . Time 20 | . . . . . 20 . . . Total Part Build Rating 2 | . . . . . 2 . . . Part Studies Acquired 4 | . . . 3 1 . . . . Parts Repaired . | . . . . . . . . . Time . | . . . . . . . . . Parts Recycled . | . . . . . . . . . Recycled Matter . | . . . . . . . . . Retrieved Matter . | . . . . . . . . . Retrieved Components . | . . . . . . . . . Parts Scanalyzed 1 | . . . . 1 . . . . Part Schematics Acquired 1 | . . . . 1 . . . . Parts Damaged . | . . . . . . . . . Bothacking | -11 -10 -10 -9 -8 -7 -6 -6 -6 ------------ Run | Yrd Mat Min Mat Mat Fac Fac Low Low Used RIF Installer . | . . . . . . . . . Robots Hacked . | . . . . . . . . . Non-combat . | . . . . . . . . . Combat . | . . . . . . . . . Robot Hacks Applied . | . . . . . . . . . Relay Couplers Released . | . . . . . . . . . Fabnet Peak Effective % . | . . . . . . . . . Robots Rewired . | . . . . . . . . . Allies Hacked . | . . . . . . . . . Hacks Repelled . | . . . . . . . . . Allies | -11 -10 -10 -9 -8 -7 -6 -6 -6 -------- Run | Yrd Mat Min Mat Mat Fac Fac Low Low Total Allies . | . . . . . . . . . Largest Group . | . . . . . . . . . Highest-Rated Group . | . . . . . . . . . Highest-Rated Ally . | . . . . . . . . . Total Orders . | . . . . . . . . . Ally Attacks . | . . . . . . . . . Total Damage . | . . . . . . . . . Kills . | . . . . . . . . . Allies Corrupted . | . . . . . . . . . Allies Melted . | . . . . . . . . . Intel | -11 -10 -10 -9 -8 -7 -6 -6 -6 ------- Run | Yrd Mat Min Mat Mat Fac Fac Low Low Active Infowar (turns) . | . . . . . . . . . Robot Analysis Total 1 | . . . . 1 . . . . Derelict Logs Recovered . | . . . . . . . . . Drone Launches . | . . . . . . . . . Drone Recoveries . | . . . . . . . . . Exploration | -11 -10 -10 -9 -8 -7 -6 -6 -6 ------------- Run | Yrd Mat Min Mat Mat Fac Fac Low Low Turns Passed 2047 | 11 55 108 564 235 131 252 504 187 Spaces Moved 2440 | 23 109 192 381 151 188 467 555 374 Core 1441 | 23 109 192 265 151 188 314 197 2 Treads . | . . . . . . . . . Legs 116 | . . . 116 . . . . . Wheels . | . . . . . . . . . Hover . | . . . . . . . . . Flight 883 | . . . . . . 153 358 372 Fastest Speed 32 | 50 50 50 50 50 50 32 32 35 Average Speed 71 | 50 50 50 127 149 65 45 74 35 Slowest Speed 250 | 50 50 50 250 200 250 150 200 195 Overloaded Moves . | . . . . . . . . . Propulsion Burnouts . | . . . . . . . . . Robots Hopped 9 | . . . . . . 3 1 5 Potential Cave-ins 1 | . . . 1 . . . . . Cave-ins Triggered 1 | . . . 1 . . . . . Exploration Rate (%) 26 | 3 34 41 22 14 3 16 66 38 Regions Visited 8 Branch Regions 3 Pre-discovered Areas . | . . . . . . . . . Known Exits Taken 8 | 1 1 1 1 1 1 1 1 . Unknown Exits Taken . | . . . . . . . . . Scrap Searched . | . . . . . . . . . Spaces Dug . | . . . . . . . . . Terrain Destroyed 313 | . . 39 121 35 . . 118 . Melee . | . . . . . . . . . Projectile . | . . . . . . . . . AOE 313 | . . 39 121 35 . . 118 . Terrain Rammed . | . . . . . . . . . Walls Destroyed . | . . . . . . . . . Machines Disabled . | . . . . . . . . . Actions | -11 -10 -10 -9 -8 -7 -6 -6 -6 --------- Run | Yrd Mat Min Mat Mat Fac Fac Low Low Total 2682 | 22 108 197 438 157 194 507 636 423 Wait 4 | . . . . . . 4 . . Move 2413 | 22 108 191 379 150 187 460 552 364 Hop 9 | . . . . . . 3 1 5 Pick Up 25 | . . . 8 . 2 6 6 3 Fast Attach 23 | . . 1 7 2 2 3 7 1 Attach 14 | . . . 2 . . 3 6 3 Detach 14 | . . . . 2 1 2 8 1 Swap 3 | . . . 2 1 . . . . Drop 27 | . . . 8 . 1 6 10 2 Fire 27 | . . 5 12 1 . . 9 . Melee . | . . . . . . . . . Ram 103 | . . . 18 1 1 20 19 44 Kick 1 | . . . 1 . . . . . Crush . | . . . . . . . . . Escape Stasis 1 | . . . 1 . . . . . Rewire 18 | . . . . . . . 18 . Trap . | . . . . . . . . . Miscellaneous . | . . . . . . . . . Route ------- -11/Scrapyard -10/Materials (discovered 2 exits: *Min x2) -10/Mines -9/Materials -8/Materials -7/Factory -6/Factory -6/Lower Caves -6/Lower Caves History --------- Turn | Location | Event 4 | -11/Scrapyard | Identified exit to Materials 4 | -11/Scrapyard | Discovered exit to Materials (range 15) 12 | -11/Scrapyard | Entered Materials 12 | -10/Materials | Evolved 1 slot: Utility x1 54 | -10/Materials | Identified exit to Mines 67 | -10/Materials | Entered Mines 98 | -10/Mines | Assembled infested the area 163 | -10/Mines | Identified exit to Materials 163 | -10/Mines | Discovered exit to Materials (range 14) 175 | -10/Mines | Entered Materials 175 | -9/Materials | Evolved 2 slots: Utility x2 323 | -9/Materials | Build established: Hacker-Mutant 506 | -9/Materials | Lost 3 parts (2u1w) 565 | -9/Materials | Crushed by falling debris 596 | -9/Materials | Lost 3 parts (1n1u1w) 678 | -9/Materials | Identified exit to Materials 678 | -9/Materials | Discovered exit to Materials (range 5) 736 | -9/Materials | Core integrity fell below 50% 739 | -9/Materials | Entered another Materials area 739 | -8/Materials | Evolved 2 slots: Power x1, Utility x1 769 | -8/Materials | Lost 3 parts (1p1n1w) 965 | -8/Materials | Identified exit to Factory 965 | -8/Materials | Discovered exit to Factory (range 16) 974 | -8/Materials | Entered Factory 974 | -7/Factory | Evolved 2 slots: Weapon x2 1011 | -7/Factory | Fabricated Rocket Launcher (x1) 1097 | -7/Factory | Identified exit to Factory 1097 | -7/Factory | Discovered exit to Factory (range 15) 1105 | -7/Factory | Entered another Factory area 1105 | -6/Factory | Evolved 2 slots: Propulsion x2 1352 | -6/Factory | Identified exit to Lower Caves 1352 | -6/Factory | Discovered exit to Lower Caves (range 14) 1357 | -6/Factory | Entered Lower Caves 1843 | -6/Lower Caves | Identified exit to Lower Caves 1843 | -6/Lower Caves | Discovered exit to Lower Caves (range 10) 1861 | -6/Lower Caves | Entered another Lower Caves area 1917 | -6/Lower Caves | Attracted the attention of an 0b10 outpost 2004 | -6/Lower Caves | Core integrity fell below 50% 2029 | -6/Lower Caves | Core integrity fell below 20% 2030 | -6/Lower Caves | Lost 3 parts (2u1w) 2048 | -6/Lower Caves | Core destroyed Last Messages --------------- 01999_ Com. Battery destroyed. 02000_ Slammed into S-27 Virus. 02011_ Destabilizing: Core damaged (-25). 02012_ Slammed into S-27 Virus. 02016_ Destabilizing: System corrupted (+1). 02017_ Slammed into S-27 Virus. 02020_ S-27 Virus destroyed. 02021_ Acquired 30 matter. 02022_ Acquired VTOL Module. 02025_ Dropped VTOL Module. 02026_ Slammed into S-27 Virus. 02026_ Destabilizing: Core damaged (-8). 02027_ Slammed into S-27 Virus. 02027_ Destabilizing: System corrupted (+1). 02028_ Slammed into S-27 Virus. 02036_ Destabilizing: System corrupted (+2). 02037_ Slammed into S-27 Virus. 02038_ Destabilizing: Core damaged (-34). 02039_ Slammed into S-27 Virus. 02048_ Destabilizing: Core damaged (-25). Map ----- +----------------------------------------------------+ | ??????????????????????##??## #???????? | | ??????????????????????# #?# ##???????? | | ??????????????????????# ## ] ##????###?? | | ??????????????????????# ##???? ### | | ??????????????????????# ##??? | | ??????????????????????# #### #??? | | ??????????????????????## ##??## #?? | | ???????????????????????#######????# #? # | | ??????????????????????????????????# ## #? | | ??????????????????????????????????## #??? | | ???????????????????????????????????# #???? | | ????????????????????????????????#### #???? | | ????????????????????????????##### ##???? | | ????????????????????????????# ###????? | | ????????????????????????????### ##??????? | | ?????????????????????###??????# ##???????? | | ?????????????????????# ###????# ## ##????????? | | ?????????????????????# * ###### ######?????????? | | ????????????????????## = ## #?????????????? | | ????????????????????# #### ### #?????????????? | | ????????????????????# #??# #?# #????????????? | | ????????????????????## #### ### ###??????????? | | ?????????????????????# ## #??????????? | | ?????????????????????#### "" #??????????? | | ???????????????????????## s"""" " #??????????? | | ???????????????????????#s@ "" "" #???######## | | ???????????????????????# """ #?### | | ??????????????????????# " " """ ### # # # | | ??????????????????????# " "" # | | ??????????????????????## # "" # ## | | ???????????????????????# ############ #### # | | ???????????????????????# #??????????# # ##??## | | ???????????????????????# ] ????????? ##????## | | ???????????????????????# ???????? #??????# | | ???????????????????????####???????#### ##??????? | | ????????????????????????????????????# # ???????? | | ???????????????????????????????????# #??????? | | ??????????????????????????????????# # ##??????? | | ??????????????????????????????????# # #???????? | | ??????????????????????????????????## #???????? | | ????????????????????????????????????# #??????? | | ????????????????????????????????????## ??????? | | ?????????????????????????????????????# ??????? | | ?????????????????????????????????????? #?????? | | ????????????????????????????????????? ??????? | | ????????????????????????????????????? ??????????? | | ??????????????????????????????????????#??????????? | | ?????????????????????????????????????????????????? | | ?????????????????????????????????????????????????? | | ?????????????????????????????????????????????????? | +----------------------------------------------------+ Best States ------------- Heat Dissipation 38 Energy Generation 14 Energy Capacity 900 Matter Stores 300 Matter Capacity 300 Sight Range 16 Terrain Scan Density 10 Armor Coverage 150 Resistance: KI 35 Resistance: TH 35 Resistance: EX 35 Resistance: EM 35 Resistance: I 35 Resistance: S 35 Resistance: P 35 Evasion (%) 63 Offensive Hacking 20 Item Schematics ----------------- Rocket Launcher | -8/Materials | Scanalyzed Robot Schematics ------------------ None Fabricated ------------ Rocket Launcher | x1 | -7/Factory Repaired ---------- Nothing Studied --------- Mni. Grenade Launcher | -9/Materials | Hacked Rocket Launcher | -9/Materials | Hacked EMP Blaster | -9/Materials | Hacked Imp. Grenade Launcher | -8/Materials | Hacked Alien Tech Used ----------------- None Achievements -------------- None Challenges ------------ None Game ------ Seed HybridPartitionGenerator Manual? 0 Play Time 00:26:41 Cumulative 524.6 hours Start 2026.08.17 @ 23:18:30 End 2026.08.17 @ 23:42:56 Sessions 2 Manual Loads 0 Difficulty Explorer Special Mode AFD2018/Launchers Game No. 30 Rogue 5 Adventurer 1 Explorer 24 Win Type - Total 5 Types 5/0/0/0/0/0/0/0/0/0 Lore% 52 Gallery% 53 Achievement% 49 Wizard Run 0 Options --------- Layout 0 ASCII 0 Keyboard 0 Movement Arrows Keybinds 0 Fullscreen 2 Font 18/X11 Map View 38x25 Zoom Use 99% Tactical HUD 1 Map Filters NONE Filters NONE Steam 1 RUN: 5c7d8e16-b0c6-498e-8273-60308f23ed35